[Event "Early-Titled-Tuesday-Blitz-October-24-2023"]
[Site "Chess.com"]
[Date "2023.10.24"]
[Round "11"]
[White "Szparu"]
[Black "dimitrisl"]
[Result "1-0"]
[WhiteElo "2702"]
[BlackElo "2576"]
[TimeControl "180+1"]
[EndTime "10:01:35 PDT"]
[Termination "Szparu won by resignation"]

1. e4 {[%clk 0:03:00.9]} 1... e5 {[%clk 0:02:59.1]} 2. Nf3 {[%clk 0:03:00.6]}
2... Nc6 {[%clk 0:02:59.6]} 3. Nc3 {[%clk 0:03:00.4]} 3... Nf6 {[%clk
0:02:59.4]} 4. Bb5 {[%clk 0:03:00.6]} 4... Nd4 {[%clk 0:02:58.7]} 5. Bc4 {[%clk
0:02:59.6]} 5... c6 {[%clk 0:02:58.6]} 6. Nxe5 {[%clk 0:02:50.1]} 6... d5 {[%clk
0:02:57.4]} 7. exd5 {[%clk 0:02:49.8]} 7... Bd6 {[%clk 0:02:51.1]} 8. Nf3 {[%clk
0:02:49.6]} 8... Bg4 {[%clk 0:02:38.8]} 9. Be2 {[%clk 0:02:49.5]} 9... Bxf3
{[%clk 0:01:43.4]} 10. Bxf3 {[%clk 0:02:49.2]} 10... O-O {[%clk 0:01:44.3]} 11.
O-O {[%clk 0:02:49]} 11... cxd5 {[%clk 0:01:39.9]} 12. Bxd5 {[%clk 0:01:55.2]}
12... Nxd5 {[%clk 0:01:33.8]} 13. Nxd5 {[%clk 0:01:56.1]} 13... Bxh2+ {[%clk
0:01:14]} 14. Kxh2 {[%clk 0:01:57]} 14... Qxd5 {[%clk 0:01:14.4]} 15. c3 {[%clk
0:01:57.6]} 15... Qd6+ {[%clk 0:00:51.7]} 16. Kg1 {[%clk 0:01:57.5]} 16... Ne6
{[%clk 0:00:47.3]} 17. d4 {[%clk 0:01:57.8]} 17... f5 {[%clk 0:00:42]} 18. Qf3
{[%clk 0:01:57.3]} 18... f4 {[%clk 0:00:37.5]} 19. Re1 {[%clk 0:01:51.8]} 19...
Ng5 {[%clk 0:00:35.2]} 20. Qg4 {[%clk 0:01:44]} 20... Qf6 {[%clk 0:00:33.6]} 21.
Bd2 {[%clk 0:01:39.7]} 21... g6 {[%clk 0:00:28.1]} 22. Re5 {[%clk 0:01:35.3]}
22... h6 {[%clk 0:00:20.3]} 23. Rae1 {[%clk 0:01:35.2]} 23... Rf7 {[%clk
0:00:20.4]} 24. d5 {[%clk 0:01:30.2]} 24... Raf8 {[%clk 0:00:20.4]} 25. c4
{[%clk 0:01:29.8]} 25... Kh7 {[%clk 0:00:19.5]} 26. Bc3 {[%clk 0:01:26.6]} 26...
Qd8 {[%clk 0:00:16.5]} 27. d6 {[%clk 0:01:17.4]} 27... Qxd6 {[%clk 0:00:14.8]}
28. Rxg5 {[%clk 0:01:15.8]} 28... f3 {[%clk 0:00:12]} 29. Rd5 {[%clk 0:01:13.3]}
1-0

[Event "Early-Titled-Tuesday-Blitz-October-24-2023"]
[Site "Chess.com"]
[Date "2023.10.24"]
[Round "11"]
[White "SashaKuzhilniy"]
[Black "Mikhail_Golubev"]
[Result "0-1"]
[WhiteElo "2637"]
[BlackElo "2564"]
[TimeControl "180+1"]
[EndTime "10:01:42 PDT"]
[Termination "Mikhail_Golubev won by resignation"]

1. b3 {[%clk 0:02:54.4]} 1... d6 {[%clk 0:02:59.2]} 2. Bb2 {[%clk 0:02:55.3]}
2... Nd7 {[%clk 0:02:59.5]} 3. d4 {[%clk 0:02:53.3]} 3... Ngf6 {[%clk
0:02:59.2]} 4. g3 {[%clk 0:02:53.3]} 4... g6 {[%clk 0:02:59.5]} 5. Bg2 {[%clk
0:02:53.9]} 5... Bg7 {[%clk 0:03:00.1]} 6. Nf3 {[%clk 0:02:54.2]} 6... O-O
{[%clk 0:03:00.7]} 7. O-O {[%clk 0:02:54.9]} 7... a5 {[%clk 0:03:00.9]} 8. a3
{[%clk 0:02:53.1]} 8... a4 {[%clk 0:02:59.9]} 9. b4 {[%clk 0:02:52.8]} 9... d5
{[%clk 0:03:00.3]} 10. Nbd2 {[%clk 0:02:52.7]} 10... Nb6 {[%clk 0:02:57.1]} 11.
Ne5 {[%clk 0:02:52.7]} 11... c6 {[%clk 0:02:54.1]} 12. c4 {[%clk 0:02:52.6]}
12... dxc4 {[%clk 0:02:52.7]} 13. Ndxc4 {[%clk 0:02:53.5]} 13... Nxc4 {[%clk
0:02:51.9]} 14. Nxc4 {[%clk 0:02:54.2]} 14... Be6 {[%clk 0:02:49.9]} 15. Rc1
{[%clk 0:02:52.9]} 15... Bd5 {[%clk 0:02:45.4]} 16. f3 {[%clk 0:02:52.2]} 16...
Bxc4 {[%clk 0:02:34.2]} 17. Rxc4 {[%clk 0:02:50.8]} 17... Nd5 {[%clk 0:02:35]}
18. Qc1 {[%clk 0:02:44]} 18... Qd6 {[%clk 0:02:17]} 19. Rd1 {[%clk 0:02:39.8]}
19... Rfd8 {[%clk 0:02:11.2]} 20. e4 {[%clk 0:02:36.2]} 20... Nb6 {[%clk
0:02:09.6]} 21. Rc5 {[%clk 0:02:34.2]} 21... e5 {[%clk 0:02:05.6]} 22. f4 {[%clk
0:02:19.5]} 22... exf4 {[%clk 0:02:00.2]} 23. Qxf4 {[%clk 0:02:10.7]} 23... Qe6
{[%clk 0:01:58.5]} 24. Ba1 {[%clk 0:01:51.3]} 24... Qb3 {[%clk 0:01:28.8]} 25.
Qf3 {[%clk 0:01:51.1]} 25... Rd7 {[%clk 0:01:18.4]} 26. Qxb3 {[%clk 0:00:56.7]}
26... axb3 {[%clk 0:01:17.7]} 27. Bh3 {[%clk 0:00:57.6]} 27... Rxa3 {[%clk
0:01:09.4]} 28. Bxd7 {[%clk 0:00:54.8]} 28... Rxa1 {[%clk 0:01:06.4]} 29. Rxa1
{[%clk 0:00:50.9]} 29... Bxd4+ {[%clk 0:01:06.2]} 30. Kg2 {[%clk 0:00:51.1]}
30... Bxa1 {[%clk 0:01:03.3]} 31. Rc1 {[%clk 0:00:35.1]} 31... b2 {[%clk
0:00:59]} 32. Rd1 {[%clk 0:00:31.5]} 32... Nxd7 {[%clk 0:00:58.5]} 33. Kf3
{[%clk 0:00:32.2]} 33... Nb6 {[%clk 0:00:57.9]} 34. Ke2 {[%clk 0:00:32]} 34...
Nc4 {[%clk 0:00:57.4]} 35. Kd3 {[%clk 0:00:30.9]} 35... Na3 {[%clk 0:00:57.3]}
0-1

[Event "Early-Titled-Tuesday-Blitz-October-24-2023"]
[Site "Chess.com"]
[Date "2023.10.24"]
[Round "11"]
[White "AsselLesbekova"]
[Black "topin8"]
[Result "1-0"]
[WhiteElo "2280"]
[BlackElo "2437"]
[TimeControl "180+1"]
[EndTime "10:01:55 PDT"]
[Termination "AsselLesbekova won on time"]

1. e4 {[%clk 0:02:54]} 1... c6 {[%clk 0:02:59]} 2. d4 {[%clk 0:02:53.2]} 2... d5
{[%clk 0:02:59.6]} 3. e5 {[%clk 0:02:52.4]} 3... Bf5 {[%clk 0:02:59.7]} 4. Nd2
{[%clk 0:02:52.4]} 4... e6 {[%clk 0:02:57.8]} 5. Nb3 {[%clk 0:02:53]} 5... Nd7
{[%clk 0:02:57.3]} 6. Be3 {[%clk 0:02:50.2]} 6... Ne7 {[%clk 0:02:55.9]} 7. f4
{[%clk 0:02:49.6]} 7... Bg6 {[%clk 0:02:30.2]} 8. Nf3 {[%clk 0:02:46.7]} 8...
Nf5 {[%clk 0:02:29.1]} 9. Bf2 {[%clk 0:02:47.3]} 9... h5 {[%clk 0:02:29.5]} 10.
Bd3 {[%clk 0:02:46.7]} 10... Be7 {[%clk 0:02:28.7]} 11. Rc1 {[%clk 0:02:44.1]}
11... Rc8 {[%clk 0:02:19.8]} 12. c4 {[%clk 0:02:32.7]} 12... dxc4 {[%clk
0:02:14.5]} 13. Bxc4 {[%clk 0:02:33.6]} 13... Nb6 {[%clk 0:02:12.8]} 14. Bd3
{[%clk 0:02:33.5]} 14... Nd5 {[%clk 0:02:11.2]} 15. g3 {[%clk 0:02:31.1]} 15...
Bb4+ {[%clk 0:01:50.3]} 16. Ke2 {[%clk 0:02:25.7]} 16... h4 {[%clk 0:01:26.9]}
17. a3 {[%clk 0:02:15.4]} 17... Be7 {[%clk 0:01:24.7]} 18. Qd2 {[%clk
0:02:14.8]} 18... Bh5 {[%clk 0:01:13.9]} 19. Rhg1 {[%clk 0:02:03.2]} 19... hxg3
{[%clk 0:00:52.2]} 20. hxg3 {[%clk 0:02:04.1]} 20... Bg4 {[%clk 0:00:42.3]} 21.
Rh1 {[%clk 0:02:03.6]} 21... Kd7 {[%clk 0:00:22.3]} 22. Qa5 {[%clk 0:01:45.7]}
22... Qxa5 {[%clk 0:00:16.4]} 23. Nxa5 {[%clk 0:01:46.6]} 23... Rxh1 {[%clk
0:00:08.6]} 24. Rxh1 {[%clk 0:01:47.5]} 24... b6 {[%clk 0:00:08.6]} 25. Nb3
{[%clk 0:01:16.6]} 25... Kc7 {[%clk 0:00:05.8]} 26. Be4 {[%clk 0:01:13.4]} 26...
Rd8 {[%clk 0:00:05.3]} 27. Rh7 {[%clk 0:01:00.3]} 27... Rg8 {[%clk 0:00:01.6]}
28. Kd3 {[%clk 0:00:57.1]} 1-0

[Event "Early-Titled-Tuesday-Blitz-October-24-2023"]
[Site "Chess.com"]
[Date "2023.10.24"]
[Round "11"]
[White "LuisFSiles"]
[Black "Matols"]
[Result "0-1"]
[WhiteElo "2279"]
[BlackElo "2386"]
[TimeControl "180+1"]
[EndTime "10:02:06 PDT"]
[Termination "Matols won on time"]

1. e4 {[%clk 0:03:00.9]} 1... e6 {[%clk 0:02:59.4]} 2. d4 {[%clk 0:02:59.3]}
2... d5 {[%clk 0:02:59.7]} 3. e5 {[%clk 0:02:59.4]} 3... c5 {[%clk 0:02:59.6]}
4. c3 {[%clk 0:02:59.9]} 4... Nc6 {[%clk 0:02:59.9]} 5. Nf3 {[%clk 0:03:00.3]}
5... Qb6 {[%clk 0:03:00.1]} 6. a3 {[%clk 0:03:00.4]} 6... Nh6 {[%clk 0:02:59.1]}
7. b4 {[%clk 0:02:56.6]} 7... cxd4 {[%clk 0:02:59.5]} 8. cxd4 {[%clk 0:02:57.2]}
8... Nf5 {[%clk 0:02:59.1]} 9. Be3 {[%clk 0:02:56.7]} 9... Bd7 {[%clk
0:02:56.3]} 10. Bd3 {[%clk 0:02:56]} 10... Nxe3 {[%clk 0:02:53.2]} 11. fxe3
{[%clk 0:02:56.9]} 11... f6 {[%clk 0:02:47.1]} 12. O-O {[%clk 0:02:53.3]} 12...
fxe5 {[%clk 0:02:43.3]} 13. b5 {[%clk 0:02:53.7]} 13... Nxd4 {[%clk 0:02:16.6]}
14. exd4 {[%clk 0:02:51.5]} 14... e4 {[%clk 0:02:15.6]} 15. Bxe4 {[%clk
0:02:36.5]} 15... dxe4 {[%clk 0:02:16.5]} 16. Ne5 {[%clk 0:02:36.5]} 16... O-O-O
{[%clk 0:02:10.2]} 17. Nc3 {[%clk 0:02:18.4]} 17... Bc5 {[%clk 0:01:55.8]} 18.
Na4 {[%clk 0:01:50.5]} 18... Bxd4+ {[%clk 0:01:54.4]} 19. Kh1 {[%clk 0:01:50.6]}
19... Qd6 {[%clk 0:01:45.4]} 20. Nf7 {[%clk 0:01:45.6]} 20... Qd5 {[%clk
0:01:44.4]} 21. Rc1+ {[%clk 0:01:17.5]} 21... Kb8 {[%clk 0:01:44.2]} 22. Nxh8
{[%clk 0:01:18.2]} 22... Rxh8 {[%clk 0:01:42.9]} 23. Rf7 {[%clk 0:01:11.7]}
23... Bxb5 {[%clk 0:01:37.1]} 24. Rcc7 {[%clk 0:00:45.9]} 24... Bc6 {[%clk
0:01:21.2]} 25. Rxc6 {[%clk 0:00:28.2]} 25... bxc6 {[%clk 0:00:51.5]} 26. Qb1+
{[%clk 0:00:24.1]} 26... Qb5 {[%clk 0:00:46]} 27. Qxe4 {[%clk 0:00:07.1]} 27...
Qxa4 {[%clk 0:00:41.9]} 0-1

[Event "Early-Titled-Tuesday-Blitz-October-24-2023"]
[Site "Chess.com"]
[Date "2023.10.24"]
[Round "11"]
[White "miraitrunks"]
[Black "NowInChess"]
[Result "1-0"]
[WhiteElo "2108"]
[BlackElo "2185"]
[TimeControl "180+1"]
[EndTime "10:02:06 PDT"]
[Termination "miraitrunks won by resignation"]

1. e4 {[%clk 0:02:58.4]} 1... e6 {[%clk 0:03:00.1]} 2. Nf3 {[%clk 0:02:59.1]}
2... d5 {[%clk 0:03:00.5]} 3. Nc3 {[%clk 0:03:00]} 3... Nf6 {[%clk 0:02:59.7]}
4. e5 {[%clk 0:03:00.3]} 4... Nfd7 {[%clk 0:02:59.9]} 5. d4 {[%clk 0:03:01.2]}
5... c5 {[%clk 0:02:59.9]} 6. dxc5 {[%clk 0:03:02.1]} 6... Nc6 {[%clk
0:02:59.5]} 7. Bf4 {[%clk 0:03:02.6]} 7... Bxc5 {[%clk 0:02:56.4]} 8. Bd3 {[%clk
0:03:02.5]} 8... f6 {[%clk 0:02:56.5]} 9. Qe2 {[%clk 0:02:59.8]} 9... O-O {[%clk
0:02:32.4]} 10. exf6 {[%clk 0:02:53.4]} 10... Qxf6 {[%clk 0:02:27.8]} 11. Bg5
{[%clk 0:02:52]} 11... Qf7 {[%clk 0:02:27.8]} 12. O-O {[%clk 0:02:49.5]} 12...
a6 {[%clk 0:01:52.5]} 13. Rfe1 {[%clk 0:02:44.8]} 13... Nd4 {[%clk 0:01:33.5]}
14. Nxd4 {[%clk 0:02:42.8]} 14... Bxd4 {[%clk 0:01:34.4]} 15. Qxe6 {[%clk
0:02:39.2]} 15... Bxf2+ {[%clk 0:01:31.4]} 16. Kh1 {[%clk 0:02:36.6]} 16... Bxe1
{[%clk 0:01:29.7]} 17. Qxf7+ {[%clk 0:02:36.9]} 17... Rxf7 {[%clk 0:01:26.4]}
18. Rxe1 {[%clk 0:02:37.8]} 18... h6 {[%clk 0:00:52.5]} 19. Bh4 {[%clk
0:02:32.3]} 19... Nf6 {[%clk 0:00:40.2]} 20. Bg6 {[%clk 0:02:31]} 20... Rf8
{[%clk 0:00:33.6]} 21. Bxf6 {[%clk 0:02:28.6]} 21... gxf6 {[%clk 0:00:22.5]} 22.
Nxd5 {[%clk 0:02:28.4]} 22... Bg4 {[%clk 0:00:11.4]} 23. h3 {[%clk 0:02:26.1]}
23... Bd7 {[%clk 0:00:09.7]} 24. Re7 {[%clk 0:02:25.6]} 24... Bc6 {[%clk
0:00:08.7]} 25. Nc7 {[%clk 0:02:24.3]} 25... Rad8 {[%clk 0:00:07.9]} 26. Ne6
{[%clk 0:02:24.4]} 26... Rd1+ {[%clk 0:00:07.5]} 27. Kh2 {[%clk 0:02:24.2]}
27... Rc8 {[%clk 0:00:06.9]} 28. Rg7+ {[%clk 0:02:23.3]} 28... Kh8 {[%clk
0:00:06.6]} 29. Rh7+ {[%clk 0:02:20.9]} 29... Kg8 {[%clk 0:00:06.1]} 30. Rg7+
{[%clk 0:02:14.3]} 30... Kh8 {[%clk 0:00:06.3]} 31. Bf5 {[%clk 0:02:14.5]} 31...
Rd2 {[%clk 0:00:05.5]} 32. Rg3 {[%clk 0:02:09.8]} 32... Rg8 {[%clk 0:00:03.5]}
33. Bg6 {[%clk 0:02:02]} 33... Re2 {[%clk 0:00:02.3]} 34. Nf4 {[%clk 0:02:02]}
34... Rxc2 {[%clk 0:00:01.9]} 35. Bxc2 {[%clk 0:02:01.5]} 35... Rxg3 {[%clk
0:00:02.8]} 36. Kxg3 {[%clk 0:02:01.7]} 36... Kg7 {[%clk 0:00:02.6]} 37. Nh5+
{[%clk 0:02:01.2]} 37... Kf7 {[%clk 0:00:02.9]} 38. Kf2 {[%clk 0:02:00.2]} 38...
Ke6 {[%clk 0:00:03]} 39. g4 {[%clk 0:02:01]} 39... Kf7 {[%clk 0:00:02.3]} 40.
Ke3 {[%clk 0:02:00.7]} 40... Bd5 {[%clk 0:00:02.9]} 41. a3 {[%clk 0:01:59.8]}
41... Bc4 {[%clk 0:00:02.6]} 42. Kf4 {[%clk 0:02:00.2]} 42... Be6 {[%clk
0:00:03.3]} 43. Ng3 {[%clk 0:01:59.7]} 43... b6 {[%clk 0:00:02.6]} 44. Nf5
{[%clk 0:01:59.9]} 44... a5 {[%clk 0:00:02.8]} 45. Nd6+ {[%clk 0:02:00.1]} 45...
Ke7 {[%clk 0:00:02.8]} 46. Nf5+ {[%clk 0:01:59.8]} 46... Kd7 {[%clk 0:00:02.2]}
47. Nxh6 {[%clk 0:02:00.3]} 47... Kc6 {[%clk 0:00:02.4]} 48. Nf5 {[%clk
0:02:00.6]} 48... Kc5 {[%clk 0:00:02.3]} 49. h4 {[%clk 0:02:01.5]} 49... Bf7
{[%clk 0:00:01.8]} 50. h5 {[%clk 0:02:02.4]} 50... b5 {[%clk 0:00:02]} 51. h6
{[%clk 0:02:02.7]} 51... Bg6 {[%clk 0:00:02]} 52. Ne3 {[%clk 0:02:03.1]} 52...
Bxc2 {[%clk 0:00:01.6]} 53. Nxc2 {[%clk 0:02:04]} 53... b4 {[%clk 0:00:02.3]}
54. axb4+ {[%clk 0:02:03.9]} 54... axb4 {[%clk 0:00:01.7]} 55. Nxb4 {[%clk
0:02:04.8]} 55... Kxb4 {[%clk 0:00:01.8]} 56. h7 {[%clk 0:02:05.7]} 56... Kb3
{[%clk 0:00:02.6]} 57. h8=Q {[%clk 0:02:05.5]} 57... Kxb2 {[%clk 0:00:03.5]} 58.
Qxf6+ {[%clk 0:02:06.3]} 58... Kc2 {[%clk 0:00:04.4]} 59. g5 {[%clk 0:02:07.2]}
1-0

[Event "Early-Titled-Tuesday-Blitz-October-24-2023"]
[Site "Chess.com"]
[Date "2023.10.24"]
[Round "11"]
[White "OK97"]
[Black "sergeikim"]
[Result "1-0"]
[WhiteElo "2764"]
[BlackElo "2602"]
[TimeControl "180+1"]
[EndTime "10:02:09 PDT"]
[Termination "OK97 won by resignation"]

1. d4 {[%clk 0:03:00.9]} 1... Nf6 {[%clk 0:02:59.3]} 2. Nf3 {[%clk 0:03:01.3]}
2... g6 {[%clk 0:02:59.4]} 3. g3 {[%clk 0:03:00.9]} 3... d6 {[%clk 0:02:59.6]}
4. Bg2 {[%clk 0:03:01.3]} 4... Bg7 {[%clk 0:03:00.2]} 5. O-O {[%clk 0:03:01.3]}
5... O-O {[%clk 0:03:00.8]} 6. Re1 {[%clk 0:03:01.9]} 6... c6 {[%clk 0:02:59.7]}
7. e4 {[%clk 0:03:00.9]} 7... Qc7 {[%clk 0:02:59.1]} 8. a4 {[%clk 0:02:56.8]}
8... a5 {[%clk 0:02:58.1]} 9. Nc3 {[%clk 0:02:56.9]} 9... e5 {[%clk 0:02:57.9]}
10. h3 {[%clk 0:02:55.2]} 10... Re8 {[%clk 0:02:58]} 11. Be3 {[%clk 0:02:52.6]}
11... Na6 {[%clk 0:02:57.6]} 12. Qd2 {[%clk 0:02:48.2]} 12... Nb4 {[%clk
0:02:57.1]} 13. Rad1 {[%clk 0:02:45.3]} 13... Be6 {[%clk 0:02:54.2]} 14. Ng5
{[%clk 0:02:27.9]} 14... Bc4 {[%clk 0:02:53.8]} 15. b3 {[%clk 0:02:26.5]} 15...
Ba6 {[%clk 0:02:53.1]} 16. Kh2 {[%clk 0:02:20.6]} 16... Rad8 {[%clk 0:02:48.1]}
17. Qc1 {[%clk 0:02:02.5]} 17... h6 {[%clk 0:02:32.9]} 18. Nf3 {[%clk
0:02:01.9]} 18... exd4 {[%clk 0:02:28]} 19. Nxd4 {[%clk 0:01:50.1]} 19... Kh7
{[%clk 0:02:27.4]} 20. f4 {[%clk 0:01:48.6]} 20... Nd7 {[%clk 0:02:25.8]} 21.
Bf2 {[%clk 0:01:39.6]} 21... Nc5 {[%clk 0:02:24.9]} 22. Qd2 {[%clk 0:01:30.9]}
22... b6 {[%clk 0:02:20.1]} 23. Nde2 {[%clk 0:01:21.1]} 23... Qe7 {[%clk
0:01:53.4]} 24. Bd4 {[%clk 0:01:19.3]} 24... Bxd4 {[%clk 0:01:24.9]} 25. Nxd4
{[%clk 0:01:20.2]} 25... Qf6 {[%clk 0:01:18]} 26. Qf2 {[%clk 0:01:17.8]} 26...
Kg7 {[%clk 0:01:13.9]} 27. Rd2 {[%clk 0:01:14.6]} 27... Re7 {[%clk 0:01:06.9]}
28. e5 {[%clk 0:01:06.7]} 28... dxe5 {[%clk 0:01:06.2]} 29. Nf5+ {[%clk
0:01:07.1]} 29... Qxf5 {[%clk 0:01:01.4]} 30. Rxd8 {[%clk 0:01:08]} 30... Nxc2
{[%clk 0:00:56.6]} 31. g4 {[%clk 0:00:52.2]} 31... Nd3 {[%clk 0:00:51.7]} 32.
gxf5 {[%clk 0:00:47.1]} 32... Nxf2 {[%clk 0:00:51.2]} 33. Rxe5 {[%clk
0:00:47.6]} 33... Rc7 {[%clk 0:00:42.7]} 34. fxg6 {[%clk 0:00:46.1]} 34... Kxg6
{[%clk 0:00:29.1]} 35. Rd2 {[%clk 0:00:41.5]} 1-0

[Event "Early-Titled-Tuesday-Blitz-October-24-2023"]
[Site "Chess.com"]
[Date "2023.10.24"]
[Round "11"]
[White "kidagent"]
[Black "Happy1712Drummer"]
[Result "0-1"]
[WhiteElo "2265"]
[BlackElo "2368"]
[TimeControl "180+1"]
[EndTime "10:02:10 PDT"]
[Termination "Happy1712Drummer won by resignation"]

1. c4 {[%clk 0:03:00.9]} 1... e6 {[%clk 0:02:52.3]} 2. g3 {[%clk 0:02:59.8]}
2... d5 {[%clk 0:02:50.3]} 3. cxd5 {[%clk 0:02:59.3]} 3... exd5 {[%clk
0:02:50.1]} 4. Bg2 {[%clk 0:02:58.8]} 4... c5 {[%clk 0:02:49.6]} 5. Nf3 {[%clk
0:02:58]} 5... Nc6 {[%clk 0:02:49.1]} 6. O-O {[%clk 0:02:57.4]} 6... Nf6 {[%clk
0:02:48.1]} 7. d4 {[%clk 0:02:57.9]} 7... Be7 {[%clk 0:02:46.9]} 8. Nc3 {[%clk
0:02:56.9]} 8... O-O {[%clk 0:02:45.9]} 9. Bg5 {[%clk 0:02:56.6]} 9... c4 {[%clk
0:02:32.1]} 10. Ne5 {[%clk 0:02:55.1]} 10... Be6 {[%clk 0:02:28.7]} 11. Nxc6
{[%clk 0:02:27.2]} 11... bxc6 {[%clk 0:02:28.6]} 12. Re1 {[%clk 0:02:23]} 12...
Rb8 {[%clk 0:02:15.6]} 13. Qc2 {[%clk 0:02:21.3]} 13... Qb6 {[%clk 0:01:58]} 14.
e4 {[%clk 0:02:07.6]} 14... Qxb2 {[%clk 0:01:31]} 15. Qxb2 {[%clk 0:02:06.3]}
15... Rxb2 {[%clk 0:01:31.9]} 16. e5 {[%clk 0:01:44.3]} 16... Bb4 {[%clk
0:01:30.8]} 17. exf6 {[%clk 0:01:16]} 17... Bxc3 {[%clk 0:01:28.9]} 18. Red1
{[%clk 0:01:04]} 18... Re8 {[%clk 0:00:50.7]} 19. Rab1 {[%clk 0:00:42.9]} 19...
h6 {[%clk 0:00:34.1]} 20. Bf4 {[%clk 0:00:35.7]} 20... gxf6 {[%clk 0:00:25.7]}
21. Bxh6 {[%clk 0:00:31.6]} 21... Bf5 {[%clk 0:00:25.5]} 22. Rxb2 {[%clk
0:00:29.7]} 22... Bxb2 {[%clk 0:00:26.4]} 23. Bf3 {[%clk 0:00:20]} 23... c3
{[%clk 0:00:23.4]} 24. Kf1 {[%clk 0:00:16.5]} 24... c2 {[%clk 0:00:19.5]} 0-1

[Event "Early-Titled-Tuesday-Blitz-October-24-2023"]
[Site "Chess.com"]
[Date "2023.10.24"]
[Round "11"]
[White "campochess"]
[Black "johnmez"]
[Result "1-0"]
[WhiteElo "2208"]
[BlackElo "2285"]
[TimeControl "180+1"]
[EndTime "10:02:19 PDT"]
[Termination "campochess won on time"]

1. d4 {[%clk 0:02:59.6]} 1... Nf6 {[%clk 0:02:59.7]} 2. Bg5 {[%clk 0:02:58.4]}
2... Ne4 {[%clk 0:02:58.6]} 3. h4 {[%clk 0:02:56.7]} 3... c5 {[%clk 0:02:45.6]}
4. d5 {[%clk 0:02:54.8]} 4... d6 {[%clk 0:02:35.7]} 5. Bf4 {[%clk 0:02:43]} 5...
g6 {[%clk 0:02:34.6]} 6. f3 {[%clk 0:02:42.4]} 6... Nf6 {[%clk 0:02:33.9]} 7. e4
{[%clk 0:02:42.4]} 7... Bg7 {[%clk 0:02:34]} 8. Nc3 {[%clk 0:02:42.4]} 8... Na6
{[%clk 0:02:24.7]} 9. Qd2 {[%clk 0:02:40.7]} 9... h5 {[%clk 0:02:20.2]} 10. Bb5+
{[%clk 0:02:34.8]} 10... Bd7 {[%clk 0:02:19.6]} 11. Bxa6 {[%clk 0:02:34.7]}
11... bxa6 {[%clk 0:02:20.2]} 12. Nh3 {[%clk 0:02:33.2]} 12... Rb8 {[%clk
0:02:19.8]} 13. Rb1 {[%clk 0:02:31.2]} 13... Bb5 {[%clk 0:02:19.3]} 14. Nf2
{[%clk 0:02:30.5]} 14... Nd7 {[%clk 0:02:06.3]} 15. a4 {[%clk 0:02:22.8]} 15...
Bc4 {[%clk 0:01:52.4]} 16. b3 {[%clk 0:02:22.1]} 16... a5 {[%clk 0:01:16.9]} 17.
Ne2 {[%clk 0:02:01.7]} 17... Bxe2 {[%clk 0:01:03.4]} 18. Qxe2 {[%clk 0:02:00.8]}
18... O-O {[%clk 0:01:03.4]} 19. O-O {[%clk 0:02:00.5]} 19... Qb6 {[%clk
0:00:57.5]} 20. Kh1 {[%clk 0:01:55.3]} 20... Ne5 {[%clk 0:00:45.2]} 21. Nd1
{[%clk 0:01:47.9]} 21... c4 {[%clk 0:00:31.2]} 22. Ne3 {[%clk 0:01:38.6]} 22...
cxb3 {[%clk 0:00:29.4]} 23. cxb3 {[%clk 0:01:32]} 23... Qd4 {[%clk 0:00:30]} 24.
Rfd1 {[%clk 0:01:27.3]} 24... Qb4 {[%clk 0:00:23.9]} 25. Nc2 {[%clk 0:01:16.5]}
25... Qb6 {[%clk 0:00:22]} 26. Be3 {[%clk 0:01:11.6]} 26... Qb7 {[%clk 0:00:21]}
27. Nd4 {[%clk 0:01:10.8]} 27... Nd7 {[%clk 0:00:17.9]} 28. Nc6 {[%clk
0:01:10.3]} 28... Rbc8 {[%clk 0:00:17.1]} 29. Nxe7+ {[%clk 0:01:09]} 29... Kh8
{[%clk 0:00:16.7]} 30. Nxc8 {[%clk 0:01:08.7]} 30... Rxc8 {[%clk 0:00:17.6]} 31.
Rdc1 {[%clk 0:01:07]} 31... Re8 {[%clk 0:00:17.3]} 32. Qb5 {[%clk 0:01:04.4]}
32... Qxb5 {[%clk 0:00:15.4]} 33. axb5 {[%clk 0:01:03.7]} 33... f5 {[%clk
0:00:16.3]} 34. Rc7 {[%clk 0:01:02]} 34... Nf6 {[%clk 0:00:13.1]} 35. Bxa7
{[%clk 0:00:57.2]} 35... fxe4 {[%clk 0:00:12.9]} 36. b6 {[%clk 0:00:56.5]} 36...
exf3 {[%clk 0:00:11.9]} 37. gxf3 {[%clk 0:00:55.4]} 37... Nxd5 {[%clk
0:00:11.7]} 38. Rxg7 {[%clk 0:00:53]} 38... Kxg7 {[%clk 0:00:07.9]} 39. b7
{[%clk 0:00:53.1]} 1-0

[Event "Early-Titled-Tuesday-Blitz-October-24-2023"]
[Site "Chess.com"]
[Date "2023.10.24"]
[Round "11"]
[White "Zhigalko_Sergei"]
[Black "FairChess_on_YouTube"]
[Result "0-1"]
[WhiteElo "2960"]
[BlackElo "3096"]
[TimeControl "180+1"]
[EndTime "10:02:22 PDT"]
[Termination "FairChess_on_YouTube won on time"]

1. e4 {[%clk 0:03:00.9]} 1... g6 {[%clk 0:02:56.9]} 2. d4 {[%clk 0:03:01]} 2...
Bg7 {[%clk 0:02:57.2]} 3. Nc3 {[%clk 0:03:01.7]} 3... a6 {[%clk 0:02:56.6]} 4.
Nf3 {[%clk 0:03:02]} 4... b5 {[%clk 0:02:56.8]} 5. a4 {[%clk 0:03:01.8]} 5... b4
{[%clk 0:02:56.7]} 6. Ne2 {[%clk 0:03:02.3]} 6... Bb7 {[%clk 0:02:56.6]} 7. Ng3
{[%clk 0:03:02.8]} 7... d6 {[%clk 0:02:52.6]} 8. Bd3 {[%clk 0:03:01.4]} 8... Nf6
{[%clk 0:02:52]} 9. O-O {[%clk 0:03:01.3]} 9... O-O {[%clk 0:02:52.2]} 10. Re1
{[%clk 0:02:57.9]} 10... Nfd7 {[%clk 0:02:39.9]} 11. Be3 {[%clk 0:02:41.9]}
11... c5 {[%clk 0:02:37.7]} 12. c3 {[%clk 0:02:36.5]} 12... Nc6 {[%clk
0:02:34.9]} 13. Qd2 {[%clk 0:02:05.2]} 13... Na5 {[%clk 0:02:28.5]} 14. Rad1
{[%clk 0:02:01]} 14... Bc6 {[%clk 0:02:06.9]} 15. cxb4 {[%clk 0:01:51.8]} 15...
cxb4 {[%clk 0:02:06.8]} 16. Qxb4 {[%clk 0:01:40.9]} 16... Rb8 {[%clk 0:02:05.8]}
17. Qa3 {[%clk 0:01:37.5]} 17... Rb3 {[%clk 0:01:54.5]} 18. Qa2 {[%clk
0:01:21.3]} 18... Qb8 {[%clk 0:01:50.4]} 19. Bc1 {[%clk 0:01:12.1]} 19... Qb6
{[%clk 0:01:35.9]} 20. Bc2 {[%clk 0:00:45.9]} 20... Rb4 {[%clk 0:01:36.1]} 21.
Ne2 {[%clk 0:00:22.1]} 21... Rc8 {[%clk 0:01:30.4]} 22. Nc3 {[%clk 0:00:22.2]}
22... Bb7 {[%clk 0:01:21.6]} 23. Ng5 {[%clk 0:00:12.2]} 23... Nc4 {[%clk
0:01:17.9]} 24. a5 {[%clk 0:00:02.7]} 24... Qxa5 {[%clk 0:01:14.2]} 25. Bb3
{[%clk 0:00:02.5]} 25... Qxa2 {[%clk 0:01:09.6]} 26. Bxa2 {[%clk 0:00:03.4]}
26... Nxb2 {[%clk 0:00:46.6]} 27. Bxb2 {[%clk 0:00:02.2]} 27... Rxb2 {[%clk
0:00:46.2]} 28. Bxf7+ {[%clk 0:00:02.7]} 28... Kf8 {[%clk 0:00:46.8]} 29. Be6
{[%clk 0:00:02.8]} 29... Rxc3 {[%clk 0:00:45.7]} 30. Bxd7 {[%clk 0:00:03]} 30...
Rcc2 {[%clk 0:00:46.4]} 31. Ne6+ {[%clk 0:00:01.8]} 31... Kg8 {[%clk 0:00:45.3]}
32. Rb1 {[%clk 0:00:01.4]} 32... Rxf2 {[%clk 0:00:41.8]} 33. Rxb2 {[%clk
0:00:01.1]} 33... Rxb2 {[%clk 0:00:42.7]} 0-1